[Event "EYTCC Open U18 2022"]
[Site "Thessaloniki"]
[Date "2022.07.13"]
[Round "2.13"]
[White "Deuer, Marius"]
[Black "Yaniv, Yuval"]
[Result "1-0"]
[ECO "B52"]
[WhiteElo "2338"]
[BlackElo "2305"]
[Annotator "ChessBase"]
[PlyCount "131"]
[EventDate "2022.07.12"]
[EventType "team-tourn"]
[EventCountry "GRE"]
[SourceTitle "playchess.com"]
[Source "ChessBase"]
[SourceQuality "1"]
[WhiteTeam "Germany"]
[BlackTeam "Israel"]
[WhiteTeamCountry "GER"]
[BlackTeamCountry "ISR"]
[TimeControl "40/5400+30:1800+30"]

1. e4 {[%emt 0:00:05]} c5 {[%emt 0:00:15]} 2. Nf3 {[%emt 0:00:04]} d6 {[%emt 0:00:16]} 3. Bb5+ {[%emt 0:00:12]} Bd7 {[%emt 0:00:23]} 4. Bxd7+ {[%emt 0:00:07]} Nxd7 {[%emt 0:00:10]} 5. O-O {[%emt 0:00:08]} Ngf6 {[%emt 0:00:26]} 6. Qe2 {[%emt 0:00:50]} e6 {[%emt 0:00:09]} 7. b3 {[%emt 0:00:20]} g6 {[%emt 0:00:15]} 8. Bb2 {[%emt 0:01:04]} Bg7 {[%emt 0:00:09]} 9. c4 {[%emt 0:00:35]} O-O {[%emt 0:00:20]} 10. d4 {[%emt 0:01:44]} cxd4 {[%emt 0:00:37]} 11. Nxd4 {[%emt 0:03:28]} d5 {[%emt 0:09:26]} 12. e5 {[%emt 0:11:49]} Ne4 {[%emt 0:00:09]} 13. cxd5 {[%emt 0:01:25]} exd5 {[%emt 0:00:06]} 14. f3 {[%emt 0:00:43]} Nxe5 {[%emt 0:00:34]} 15. fxe4 {[%emt 0:08:28]} dxe4 {[%emt 0:00:07]} 16. Qxe4 {[%emt 0:03:17]} Re8 {[%emt 0:00:27]} 17. Nd2 {[%emt 0:17:19]} Nc4 {[%emt 0:42:57]} 18. Qxe8+ {[%emt 0:16:19]} Qxe8 {[%emt 0:00:02]} 19. Nxc4 {[%emt 0:00:07]} b5 {[%emt 0:00:14]} 20. Rfe1 {[%emt 0:07:54]} Bxd4+ {[%emt 0:00:07]} 21. Bxd4 {[%emt 0:00:01]} Qd7 {[%emt 0:01:29]} 22. Bf2 {[%emt 0:00:59]} bxc4 {[%emt 0:00:08]} 23. bxc4 {[%emt 0:00:01]} Rd8 {[%emt 0:12:29]} 24. c5 {[%emt 0:01:08]} g5 {[%emt 0:02:45]} 25. Rac1 {[%emt 0:00:31]} Qc6 {[%emt 0:00:22]} 26. Rcd1 {[%emt 0:01:22]} Rxd1 {[%emt 0:00:09]} 27. Rxd1 {[%emt 0:00:05]} f5 {[%emt 0:02:18]} 28. h3 {[%emt 0:03:57]} f4 {[%emt 0:02:28]} 29. Rd6 {[%emt 0:00:45]} Qc7 {[%emt 0:00:10]} 30. Bd4 {[%emt 0:07:47]} Qe7 {[%emt 0:04:46]} 31. Kf2 {[%emt 0:05:00]} h5 {[%emt 0:05:39]} 32. Kf3 {[%emt 0:02:16]} Kh7 {[%emt 0:02:28]} 33. h4 {[%emt 0:01:50]} gxh4 {[%emt 0:01:43]} 34. Kxf4 {[%emt 0:00:17]} Qe2 {[%emt 0:03:19]} 35. c6 {[%emt 0:01:10]} Qg4+ {[%emt 0:00:13]} 36. Ke5 {[%emt 0:00:13]} Qxg2 {[%emt 0:03:11]} 37. c7 {[%emt 0:00:00]} Qc2 {[%emt 0:00:13]} 38. Rd7+ {[%emt 0:00:51]} Kg6 {[%emt 0:00:08]} 39. Kd6 {[%emt 0:01:02]} h3 {[%emt 0:05:04]} 40. Bc5 {[%emt 0:00:00]} Qd2+ {[%emt 0:00:00]} 41. Kc6 {[%emt 0:08:14]} Qg2+ {[%emt 0:05:44]} 42. Rd5 {[%emt 0:00:05]} h2 {[%emt 0:03:35]} 43. c8=Q {[%emt 0:00:14]} Qxd5+ {[%emt 0:09:12]} 44. Kxd5 {[%emt 0:00:04]} h1=Q+ {[%emt 0:00:05]} 45. Kd6 {[%emt 0:04:49]} Qh2+ {[%emt 0:00:21]} 46. Ke7 {[%emt 0:00:21]} Qh4+ {[%emt 0:13:00]} 47. Kd7 {[%emt 0:01:42]} Qg4+ {[%emt 0:00:06]} 48. Kd8 {[%emt 0:05:36]} Qg5+ {[%emt 0:00:19]} 49. Ke8 {[%emt 0:01:36]} Qe5+ {[%emt 0:00:21]} 50. Be7 {[%emt 0:00:32]} Qh8+ {[%emt 0:00:21]} 51. Kd7 {[%emt 0:00:47]} Qd4+ {[%emt 0:00:22]} 52. Bd6 {[%emt 0:00:17]} Qg7+ {[%emt 0:00:48]} 53. Kc6 {[%emt 0:02:41]} Qc3+ {[%emt 0:00:03]} 54. Bc5 {[%emt 0:00:12]} Qf3+ {[%emt 0:01:02]} 55. Kc7 {[%emt 0:00:44]} Qf7+ {[%emt 0:01:00]} 56. Qd7 {[%emt 0:01:14]} Qxa2 {[%emt 0:00:13]} 57. Qd3+ {[%emt 0:00:12]} Kg5 {[%emt 0:02:25]} 58. Be7+ {[%emt 0:03:05]} Kg4 {[%emt 0:00:34]} 59. Qe4+ {[%emt 0:02:21]} Kh3 {[%emt 0:00:07]} 60. Qf3+ {[%emt 0:00:29]} Kh2 {[%emt 0:00:01]} 61. Bd6+ {[%emt 0:02:07]} Kg1 {[%emt 0:00:03]} 62. Bc5+ {[%emt 0:00:18]} Kh2 {[%emt 0:00:01]} 63. Qxh5+ {[%emt 0:00:13]} Kg2 {[%emt 0:00:21]} 64. Qg4+ {[%emt 0:00:56]} Kh2 {[%emt 0:00:07]} 65. Bd6+ {[%emt 0:00:17]} Kh1 {[%emt 0:00:04]} 66. Qh3+ {[%emt 0:00:12]} 1-0

[Event "EYTCC Open U18 2022"]
[Site "Thessaloniki"]
[Date "2022.07.13"]
[Round "2.13"]
[White "Antal, Hunor-Zoltan"]
[Black "Milikow, Elie"]
[Result "*"]
[ECO "B52"]
[WhiteElo "2263"]
[BlackElo "2433"]
[Annotator "ChessBase"]
[PlyCount "28"]
[EventDate "2022.07.12"]
[EventType "team-tourn"]
[EventCountry "GRE"]
[SourceTitle "playchess.com"]
[Source "ChessBase"]
[SourceQuality "1"]
[WhiteTeam "Romania"]
[BlackTeam "Israel"]
[WhiteTeamCountry "ROU"]
[BlackTeamCountry "ISR"]
[TimeControl "40/5400+30:1800+30"]

1. e4 {[%emt 0:00:05]} c5 {[%emt 0:00:15]} 2. Nf3 {[%emt 0:00:04]} d6 {[%emt 0:00:16]} 3. Bb5+ {[%emt 0:00:12]} Bd7 {[%emt 0:00:23]} 4. Bxd7+ {[%emt 0:00:07]} Nxd7 {[%emt 0:00:10]} 5. O-O {[%emt 0:00:08]} Ngf6 {[%emt 0:00:26]} 6. Qe2 {[%emt 0:00:50]} e6 {[%emt 0:00:09]} 7. b3 {[%emt 0:00:20]} g6 {[%emt 0:00:15]} 8. Bb2 {[%emt 0:01:04]} Bg7 {[%emt 0:00:09]} 9. c4 {[%emt 0:00:35]} O-O {[%emt 0:00:20]} 10. d4 {[%emt 0:01:44]} cxd4 {[%emt 0:00:37]} 11. Nxd4 {[%emt 0:03:28]} d5 {[%emt 0:09:26]} 12. e5 {[%emt 0:11:49]} Ne4 {[%emt 0:00:09]} 13. cxd5 {[%emt 0:01:25]} exd5 {[%emt 0:00:06]} 14. f3 {[%emt 0:00:43]} Nxe5 {[%emt 0:00:34]} *

[Event "EYTCC Open U18 2022"]
[Site "Thessaloniki"]
[Date "2022.07.13"]
[Round "2.14"]
[White "Guz, Ari"]
[Black "Deuer, Marius"]
[Result "1/2-1/2"]
[ECO "D15"]
[WhiteElo "2331"]
[BlackElo "2338"]
[Annotator "ChessBase"]
[PlyCount "71"]
[EventDate "2022.07.12"]
[EventType "team-tourn"]
[EventCountry "GRE"]
[SourceTitle "playchess.com"]
[Source "ChessBase"]
[SourceQuality "1"]
[WhiteTeam "Israel"]
[BlackTeam "Germany"]
[WhiteTeamCountry "ISR"]
[BlackTeamCountry "GER"]
[TimeControl "40/5400+30:1800+30"]

1. Nf3 {[%emt 0:00:46]} d5 {[%emt 0:00:21]} 2. c4 {[%emt 0:00:43]} c6 {[%emt 0:01:01]} 3. d4 {[%emt 0:02:01]} Nf6 {[%emt 0:00:23]} 4. Nc3 {[%emt 0:00:30]} dxc4 {[%emt 0:02:29]} 5. e4 {[%emt 0:01:45]} b5 {[%emt 0:00:19]} 6. Be2 {[%emt 0:00:28]} b4 {[%emt 0:12:10]} 7. Na4 {[%emt 0:02:44]} Nxe4 {[%emt 0:01:02]} 8. Bxc4 {[%emt 0:00:08]} Nd6 {[%emt 0:10:18]} 9. Be2 {[%emt 0:03:58]} g6 {[%emt 0:02:50]} 10. Bf4 {[%emt 0:03:58]} Bg7 {[%emt 0:02:17]} 11. Qd2 {[%emt 0:11:23]} O-O {[%emt 0:11:24]} 12. O-O {[%emt 0:03:00]} a5 {[%emt 0:05:10]} 13. Nc5 {[%emt 0:03:52]} Bg4 {[%emt 0:06:00]} 14. Rfd1 {[%emt 0:09:12]} Qc8 {[%emt 0:03:58]} 15. Bh6 {[%emt 0:07:17]} Bxh6 {[%emt 0:05:37]} 16. Qxh6 {[%emt 0:00:09]} Bxf3 {[%emt 0:00:04]} 17. Bxf3 {[%emt 0:00:10]} Nf5 {[%emt 0:00:26]} 18. Qf4 {[%emt 0:00:56]} Nd7 {[%emt 0:01:16]} 19. Rac1 {[%emt 0:01:51]} Nxc5 {[%emt 0:13:03]} 20. Rxc5 {[%emt 0:00:08]} Rd8 {[%emt 0:01:16]} 21. Bxc6 {[%emt 0:04:35]} Ra6 {[%emt 0:05:55]} 22. Bf3 {[%emt 0:03:47]} Qd7 {[%emt 0:01:04]} 23. d5 {[%emt 0:07:41]} Kg7 {[%emt 0:02:17]} 24. Rdc1 {[%emt 0:01:47]} Qd6 {[%emt 0:01:37]} 25. Qc4 {[%emt 0:03:03]} Ra7 {[%emt 0:02:43]} 26. Be4 {[%emt 0:04:44]} Qf6 {[%emt 0:02:08]} 27. Bxf5 {[%emt 0:00:26]} Qxf5 {[%emt 0:02:50]} 28. h3 {[%emt 0:01:02]} Rd6 {[%emt 0:01:13]} 29. Qb5 {[%emt 0:03:23]} Qd7 {[%emt 0:01:14]} 30. Qd3 {[%emt 0:01:22]} e6 {[%emt 0:00:47]} 31. Qd4+ {[%emt 0:00:47]} f6 {[%emt 0:00:06]} 32. Rc6 {[%emt 0:05:01]} Rxd5 {[%emt 0:00:41]} 33. Qb6 {[%emt 0:00:02]} Rd1+ {[%emt 0:01:57]} 34. Rxd1 {[%emt 0:00:22]} Qxd1+ {[%emt 0:00:02]} 35. Kh2 {[%emt 0:00:01]} Re7 {[%emt 0:00:43]} 36. Rxe6 {[%emt 0:04:42]} 1/2-1/2

[Event "EYTCC Open U18 2022"]
[Site "Thessaloniki"]
[Date "2022.07.13"]
[Round "2.15"]
[White "Colbow, Collin"]
[Black "Zemach, Nadav"]
[Result "1/2-1/2"]
[ECO "C29"]
[WhiteElo "2325"]
[BlackElo "2225"]
[Annotator "ChessBase"]
[PlyCount "82"]
[EventDate "2022.07.12"]
[EventType "team-tourn"]
[EventCountry "GRE"]
[SourceTitle "playchess.com"]
[Source "ChessBase"]
[SourceQuality "1"]
[WhiteTeam "Germany"]
[BlackTeam "Israel"]
[WhiteTeamCountry "GER"]
[BlackTeamCountry "ISR"]
[TimeControl "40/5400+30:1800+30"]

1. e4 {[%emt 0:02:18]} e5 {[%emt 0:00:02]} 2. Nc3 {[%emt 0:00:11]} Nf6 {[%emt 0:00:07]} 3. f4 {[%emt 0:00:06]} d5 {[%emt 0:00:25]} 4. fxe5 {[%emt 0:00:12]} Nxe4 {[%emt 0:00:28]} 5. Qf3 {[%emt 0:00:29]} f5 {[%emt 0:00:45]} 6. d3 {[%emt 0:00:23]} Nxc3 {[%emt 0:00:39]} 7. bxc3 {[%emt 0:00:04]} d4 {[%emt 0:00:17]} 8. Qg3 {[%emt 0:01:16]} dxc3 {[%emt 0:05:03]} 9. Be2 {[%emt 0:00:05]} Be6 {[%emt 0:04:03]} 10. Bf3 {[%emt 0:04:35]} Nc6 {[%emt 0:04:36]} 11. Bxc6+ {[%emt 0:01:28]} bxc6 {[%emt 0:00:13]} 12. Ne2 {[%emt 0:02:02]} Qd7 {[%emt 0:05:39]} 13. O-O {[%emt 0:08:17]} Bc5+ {[%emt 0:06:37]} 14. Be3 {[%emt 0:06:41]} Bb6 {[%emt 0:00:29]} 15. a4 {[%emt 0:04:19]} Ba5 {[%emt 0:01:36]} 16. Bc5 {[%emt 0:05:16]} Bb6 {[%emt 0:01:36]} 17. Be3 {[%emt 0:06:22]} Ba5 {[%emt 0:00:06]} 18. Bc5 {[%emt 0:00:10]} Bb6 {[%emt 0:00:03]} 19. Qe3 {[%emt 0:04:48]} Qe7 {[%emt 0:04:17]} 20. Bxb6 axb6 21. d4 {[%emt 0:16:51]} O-O {[%emt 0:05:27]} 22. Qxc3 {[%emt 0:01:38]} Qd7 {[%emt 0:01:16]} 23. a5 {[%emt 0:07:44]} bxa5 {[%emt 0:01:53]} 24. Nf4 {[%emt 0:01:33]} a4 {[%emt 0:05:16]} 25. Rfb1 {[%emt 0:11:30]} Rfd8 {[%emt 0:07:55]} 26. Ra3 {[%emt 0:03:43]} g5 {[%emt 0:13:03]} 27. Nxe6 {[%emt 0:00:21]} Qxe6 {[%emt 0:00:05]} 28. Rb4 {[%emt 0:00:56]} Qd5 {[%emt 0:01:53]} 29. Raxa4 {[%emt 0:02:11]} Rxa4 {[%emt 0:00:58]} 30. Rxa4 {[%emt 0:00:03]} Qe4 {[%emt 0:11:50]} 31. h3 {[%emt 0:01:01]} g4 {[%emt 0:02:40]} 32. Kh2 {[%emt 0:05:03]} h5 {[%emt 0:00:35]} 33. Qd3 {[%emt 0:02:50]} Qxd3 {[%emt 0:03:34]} 34. cxd3 {[%emt 0:00:01]} f4 {[%emt 0:01:38]} 35. hxg4 {[%emt 0:00:39]} hxg4 {[%emt 0:00:02]} 36. Rc4 {[%emt 0:01:29]} Kf7 {[%emt 0:01:09]} 37. d5 {[%emt 0:01:12]} Rxd5 {[%emt 0:00:20]} 38. Rxf4+ {[%emt 0:00:04]} Ke6 {[%emt 0:00:28]} 39. d4 {[%emt 0:01:31]} c5 {[%emt 0:00:05]} 40. dxc5 {[%emt 0:00:00]} Rxc5 {[%emt 0:00:00]} 41. Kg3 {[%emt 0:02:22]} Kxe5 {[%emt 0:00:45]} 1/2-1/2

[Event "EYTCC Open U18 2022"]
[Site "Thessaloniki"]
[Date "2022.07.13"]
[Round "2.15"]
[White "Palczert, Matyas"]
[Black "Falkevall, Axel"]
[Result "*"]
[WhiteElo "2321"]
[BlackElo "2275"]
[Annotator "ChessBase"]
[PlyCount "24"]
[EventDate "2022.07.12"]
[EventType "team-tourn"]
[EventCountry "GRE"]
[SourceTitle "playchess.com"]
[Source "ChessBase"]
[SourceQuality "1"]
[WhiteTeam "Hungary"]
[BlackTeam "Sweden"]
[WhiteTeamCountry "HUN"]
[BlackTeamCountry "SWE"]
[TimeControl "40/5400+30:1800+30"]

1. e4 {[%emt 0:02:18]} e5 {[%emt 0:00:02]} 2. Nc3 {[%emt 0:00:11]} Nf6 {[%emt 0:00:07]} 3. f4 {[%emt 0:00:06]} d5 {[%emt 0:00:25]} 4. fxe5 {[%emt 0:00:12]} Nxe4 {[%emt 0:00:28]} 5. Qf3 {[%emt 0:00:29]} f5 {[%emt 0:00:45]} 6. d3 {[%emt 0:00:23]} Nxc3 {[%emt 0:00:39]} 7. bxc3 {[%emt 0:00:04]} d4 {[%emt 0:00:17]} 8. Qg3 {[%emt 0:01:16]} dxc3 {[%emt 0:05:03]} 9. Be2 {[%emt 0:00:05]} Be6 {[%emt 0:04:03]} 10. Bf3 {[%emt 0:04:35]} Nc6 {[%emt 0:04:36]} 11. Bxc6+ {[%emt 0:01:28]} bxc6 {[%emt 0:00:13]} 12. Ne2 {[%emt 0:02:02]} Qd7 {[%emt 0:05:39]} *

[Event "EYTCC Open U18 2022"]
[Site "Thessaloniki"]
[Date "2022.07.13"]
[Round "2.16"]
[White "Soderstrom, Adrian"]
[Black "Pasztor, Balazs"]
[Result "*"]
[ECO "B44"]
[WhiteElo "2292"]
[BlackElo "2336"]
[Annotator "ChessBase"]
[PlyCount "21"]
[EventDate "2022.07.12"]
[EventType "team-tourn"]
[EventCountry "GRE"]
[SourceTitle "playchess.com"]
[Source "ChessBase"]
[SourceQuality "1"]
[WhiteTeam "Sweden"]
[BlackTeam "Hungary"]
[WhiteTeamCountry "SWE"]
[BlackTeamCountry "HUN"]
[TimeControl "40/5400+30:1800+30"]

1. e4 {[%emt 0:00:04]} c5 {[%emt 0:00:11]} 2. Nf3 {[%emt 0:00:11]} e6 {[%emt 0:00:11]} 3. d4 {[%emt 0:00:23]} cxd4 {[%emt 0:00:18]} 4. Nxd4 {[%emt 0:00:14]} Nc6 {[%emt 0:00:18]} 5. Nc3 {[%emt 0:00:30]} Qc7 {[%emt 0:00:20]} 6. Be3 {[%emt 0:01:09]} a6 {[%emt 0:00:09]} 7. a3 {[%emt 0:01:21]} Nf6 {[%emt 0:01:45]} 8. f4 {[%emt 0:00:34]} Nxd4 {[%emt 0:07:15]} 9. Bxd4 {[%emt 0:01:17]} d6 {[%emt 0:06:09]} 10. Qf3 {[%emt 0:06:00]} Bd7 {[%emt 0:10:51]} 11. Bd3 {[%emt 0:04:19]} *

[Event "EYTCC Open U18 2022"]
[Site "Thessaloniki"]
[Date "2022.07.13"]
[Round "2.16"]
[White "Vagman, Roy"]
[Black "Cherniaiev, Tykhon"]
[Result "1/2-1/2"]
[ECO "B48"]
[WhiteElo "2180"]
[BlackElo "2186"]
[Annotator "ChessBase"]
[PlyCount "78"]
[EventDate "2022.07.12"]
[EventType "team-tourn"]
[EventCountry "GRE"]
[SourceTitle "playchess.com"]
[Source "ChessBase"]
[SourceQuality "1"]
[WhiteTeam "Israel"]
[BlackTeam "Germany"]
[WhiteTeamCountry "ISR"]
[BlackTeamCountry "GER"]
[TimeControl "40/5400+30:1800+30"]

1. e4 {[%emt 0:00:04]} c5 {[%emt 0:00:11]} 2. Nf3 {[%emt 0:00:11]} e6 {[%emt 0:00:11]} 3. d4 {[%emt 0:00:23]} cxd4 {[%emt 0:00:18]} 4. Nxd4 {[%emt 0:00:14]} Nc6 {[%emt 0:00:18]} 5. Nc3 {[%emt 0:00:30]} Qc7 {[%emt 0:00:20]} 6. Be3 {[%emt 0:01:09]} a6 {[%emt 0:00:09]} 7. a3 {[%emt 0:01:21]} Nf6 {[%emt 0:01:45]} 8. f4 {[%emt 0:00:34]} Nxd4 {[%emt 0:07:15]} 9. Bxd4 {[%emt 0:01:17]} d6 {[%emt 0:06:09]} 10. Qf3 {[%emt 0:06:00]} Bd7 {[%emt 0:10:51]} 11. Bd3 {[%emt 0:04:19]} Rc8 {[%emt 0:09:09]} 12. O-O {[%emt 0:07:17]} Be7 {[%emt 0:24:00]} 13. Rae1 {[%emt 0:13:23]} e5 {[%emt 0:12:27]} 14. fxe5 {[%emt 0:03:30]} dxe5 {[%emt 0:00:05]} 15. Nd5 {[%emt 0:02:01]} Qd6 {[%emt 0:00:28]} 16. Bc3 {[%emt 0:00:39]} a5 {[%emt 0:01:44]} 17. Kh1 {[%emt 0:03:17]} O-O {[%emt 0:01:44]} 18. Nxe7+ {[%emt 0:05:53]} Qxe7 {[%emt 0:00:30]} 19. Bxa5 {[%emt 0:00:24]} Rfe8 {[%emt 0:00:23]} 20. Bb4 {[%emt 0:06:47]} Qe6 {[%emt 0:00:49]} 21. Bd2 {[%emt 0:03:16]} Bc6 {[%emt 0:01:57]} 22. Qg3 {[%emt 0:04:29]} Kh8 {[%emt 0:01:41]} 23. Qh4 {[%emt 0:04:17]} Nd7 {[%emt 0:02:35]} 24. Re3 {[%emt 0:04:43]} Nc5 {[%emt 0:04:23]} 25. Rh3 {[%emt 0:01:43]} Qg6 {[%emt 0:01:30]} 26. Rg3 {[%emt 0:04:40]} Qe6 {[%emt 0:00:48]} 27. Rh3 {[%emt 0:14:44]} Qg6 {[%emt 0:00:06]} 28. Rf5 {[%emt 0:00:28]} Nxd3 {[%emt 0:00:36]} 29. cxd3 {[%emt 0:01:15]} Bd7 {[%emt 0:00:11]} 30. Rg5 {[%emt 0:00:44]} Qh6 {[%emt 0:00:07]} 31. Qxh6 {[%emt 0:01:52]} gxh6 {[%emt 0:00:07]} 32. Rxh6 {[%emt 0:00:22]} Rc2 {[%emt 0:00:30]} 33. Be3 {[%emt 0:00:22]} Re2 {[%emt 0:03:11]} 34. Bg1 {[%emt 0:00:04]} Rg8 {[%emt 0:02:07]} 35. Rxe5 {[%emt 0:02:48]} Bg4 {[%emt 0:00:31]} 36. h3 {[%emt 0:00:49]} Bf3 37. gxf3 {[%emt 0:01:35]} Re1 {[%emt 0:00:13]} 38. Kh2 {[%emt 0:01:05]} Re2+ {[%emt 0:00:06]} 39. Kh1 {[%emt 0:00:08]} Re1 {[%emt 0:00:05]} 1/2-1/2

[Event "EYTCC Open U18 2022"]
[Site "Thessaloniki"]
[Date "2022.07.13"]
[Round "2.17"]
[White "Subelj, Jan"]
[Black "Baum, Jonasz"]
[Result "1/2-1/2"]
[ECO "A29"]
[WhiteElo "2498"]
[BlackElo "2410"]
[Annotator "ChessBase"]
[PlyCount "124"]
[EventDate "2022.07.12"]
[EventType "team-tourn"]
[EventCountry "GRE"]
[SourceTitle "playchess.com"]
[Source "ChessBase"]
[SourceQuality "1"]
[WhiteTeam "Slovenia"]
[BlackTeam "Poland"]
[WhiteTeamCountry "SLO"]
[BlackTeamCountry "POL"]
[TimeControl "40/5400+30:1800+30"]

1. c4 e5 2. Nc3 Nf6 3. Nf3 Nc6 4. g3 d5 5. cxd5 Nxd5 6. Bg2 Nb6 7. O-O Be7 8. b3 O-O 9. Bb2 Re8 10. Rc1 Bf5 11. d3 Qd7 12. Ne4 f6 13. Nc5 Bxc5 14. Rxc5 Bh3 15. b4 Bxg2 16. Kxg2 Qf7 17. b5 Nd8 18. Qb3 Qxb3 19. axb3 Ne6 20. Rcc1 Rad8 21. Nd2 Rd5 22. f4 exf4 23. gxf4 Rxb5 24. Kf3 Nd5 25. e4 Ndxf4 26. Ke3 Ng6 27. Rf5 Rb6 28. Rg1 Kf7 29. d4 Ne7 30. Ra5 a6 31. d5 Ng5 32. Kd3 Ng6 33. Rc1 c6 34. Nc4 Rxb3+ 35. Kc2 Rh3 36. Nd6+ Ke7 37. Nxe8 Kxe8 38. dxc6 bxc6 39. Rxa6 Ne7 40. Ba3 Rxh2+ 41. Kb1 Nxe4 42. Bxe7 Nd2+ 43. Kb2 Nf3+ 44. Kc3 Kxe7 45. Ra7+ Ke6 46. Rxg7 Ne5 47. Rf1 c5 48. Ra7 Rh3+ 49. Kc2 Nf3 50. Kb2 f5 51. Ra5 Nd2 52. Re1+ Ne4 53. Rxc5 Kf6 54. Ra5 h5 55. Kc2 h4 56. Rf1 Rh2+ 57. Kd3 Ng3 58. Rg1 Kg5 59. Ke3 Rb2 60. Ra3 Kg4 61. Ra4+ Kh3 62. Re1 Rc2 1/2-1/2

[Event "EYTCC Open U18 2022"]
[Site "Thessaloniki"]
[Date "2022.07.13"]
[Round "2.17"]
[White "Tadic, Stefan"]
[Black "Kristoferitsch, Daniel"]
[Result "*"]
[WhiteElo "2356"]
[BlackElo "2312"]
[Annotator "ChessBase"]
[PlyCount "27"]
[EventDate "2022.07.12"]
[EventType "team-tourn"]
[EventCountry "GRE"]
[SourceTitle "playchess.com"]
[Source "ChessBase"]
[SourceQuality "1"]
[WhiteTeam "Serbia"]
[BlackTeam "Austria"]
[WhiteTeamCountry "SRB"]
[BlackTeamCountry "AUT"]
[TimeControl "40/5400+30:1800+30"]

1. c4 e5 2. Nc3 Nf6 3. Nf3 Nc6 4. g3 d5 5. cxd5 Nxd5 6. Bg2 Nb6 7. O-O Be7 8. b3 O-O 9. Bb2 Re8 10. Rc1 Bf5 11. d3 Qd7 12. Ne4 f6 13. Nc5 Bxc5 14. Rxc5 *

[Event "EYTCC Open U18 2022"]
[Site "Thessaloniki"]
[Date "2022.07.13"]
[Round "2.18"]
[White "Czopor, Maciej"]
[Black "Marn, Jan"]
[Result "1-0"]
[ECO "D31"]
[WhiteElo "2415"]
[BlackElo "2282"]
[Annotator "ChessBase"]
[PlyCount "127"]
[EventDate "2022.07.12"]
[EventType "team-tourn"]
[EventCountry "GRE"]
[SourceTitle "playchess.com"]
[Source "ChessBase"]
[SourceQuality "1"]
[WhiteTeam "Poland"]
[BlackTeam "Slovenia"]
[WhiteTeamCountry "POL"]
[BlackTeamCountry "SLO"]
[TimeControl "40/5400+30:1800+30"]

1. d4 {[%emt 0:00:03]} d5 {[%emt 0:00:11]} 2. c4 {[%emt 0:00:07]} e6 {[%emt 0:00:03]} 3. Nc3 {[%emt 0:00:13]} Bb4 {[%emt 0:00:05]} 4. Nf3 {[%emt 0:04:38]} dxc4 {[%emt 0:00:15]} 5. e3 {[%emt 0:10:46]} b5 {[%emt 0:01:26]} 6. a4 {[%emt 0:01:39]} c6 {[%emt 0:00:08]} 7. Bd2 {[%emt 0:08:23]} a5 {[%emt 0:00:10]} 8. axb5 {[%emt 0:04:53]} Bxc3 {[%emt 0:00:08]} 9. Bxc3 {[%emt 0:05:31]} cxb5 {[%emt 0:00:16]} 10. b3 {[%emt 0:00:46]} Bb7 {[%emt 0:00:06]} 11. bxc4 {[%emt 0:00:17]} b4 {[%emt 0:00:05]} 12. Bb2 {[%emt 0:00:02]} Nf6 {[%emt 0:00:06]} 13. Bd3 {[%emt 0:01:54]} Nbd7 {[%emt 0:01:00]} 14. O-O {[%emt 0:01:57]} Qc7 {[%emt 0:04:23]} 15. Re1 {[%emt 0:09:04]} Ne4 {[%emt 0:00:29]} 16. Qc2 {[%emt 0:07:55]} f5 {[%emt 0:00:08]} 17. d5 {[%emt 0:10:18]} exd5 {[%emt 0:28:09]} 18. Nd4 {[%emt 0:00:30]} Ne5 {[%emt 0:01:31]} 19. Ne6 {[%emt 0:08:23]} Qd7 {[%emt 0:06:57]} 20. cxd5 {[%emt 0:08:22]} Rc8 {[%emt 0:00:06]} 21. Qe2 {[%emt 0:01:00]} Qxd5 {[%emt 0:27:26]} 22. Nf4 {[%emt 0:03:57]} Qc5 {[%emt 0:01:42]} 23. Bxe4 {[%emt 0:02:37]} fxe4 {[%emt 0:01:28]} 24. Rec1 {[%emt 0:01:33]} Nc4 {[%emt 0:01:14]} 25. Qg4 {[%emt 0:02:54]} Qe7 {[%emt 0:01:15]} 26. Nd5 {[%emt 0:04:09]} Qf7 {[%emt 0:12:50]} 27. Qxe4+ {[%emt 0:00:01]} Kf8 {[%emt 0:00:07]} 28. Rxc4 {[%emt 0:00:14]} Rxc4 {[%emt 0:00:05]} 29. Qxc4 {[%emt 0:00:07]} Qxd5 {[%emt 0:00:56]} 30. Qxd5 {[%emt 0:01:58]} Bxd5 {[%emt 0:00:04]} 31. Rxa5 {[%emt 0:00:04]} Bc6 {[%emt 0:00:44]} 32. Ra6 {[%emt 0:00:39]} Bd7 {[%emt 0:01:18]} 33. Ra8+ {[%emt 0:00:28]} Be8 {[%emt 0:00:05]} 34. Rb8 {[%emt 0:00:08]} Kf7 {[%emt 0:01:38]} 35. f3 {[%emt 0:01:28]} Rg8 {[%emt 0:00:58]} 36. Rxb4 {[%emt 0:00:23]} Bd7 {[%emt 0:01:17]} 37. Rf4+ {[%emt 0:01:04]} Ke6 {[%emt 0:00:16]} 38. Kf2 {[%emt 0:00:12]} g6 {[%emt 0:01:38]} 39. Re4+ {[%emt 0:00:33]} Kf7 {[%emt 0:00:08]} 40. Rf4+ {[%emt 0:00:00]} Ke6 {[%emt 0:00:00]} 41. g4 {[%emt 0:09:46]} Rc8 {[%emt 0:04:21]} 42. Kg3 {[%emt 0:01:11]} Rc2 {[%emt 0:00:09]} 43. Bd4 {[%emt 0:00:34]} Ke7 {[%emt 0:03:55]} 44. g5 {[%emt 0:01:26]} Be6 {[%emt 0:00:27]} 45. Rh4 {[%emt 0:00:39]} Bg8 {[%emt 0:00:04]} 46. Bf6+ {[%emt 0:00:13]} Kf7 {[%emt 0:06:59]} 47. Ra4 {[%emt 0:01:25]} Ke6 {[%emt 0:06:57]} 48. Ra7 {[%emt 0:05:10]} Kd6 {[%emt 0:01:39]} 49. Rg7 {[%emt 0:01:13]} Rc8 {[%emt 0:00:05]} 50. e4 {[%emt 0:00:43]} Ra8 {[%emt 0:00:17]} 51. Be7+ {[%emt 0:02:40]} Kc6 {[%emt 0:01:46]} 52. f4 {[%emt 0:01:20]} Rb8 {[%emt 0:01:14]} 53. f5 {[%emt 0:00:48]} gxf5 {[%emt 0:00:06]} 54. exf5 {[%emt 0:00:04]} Kd5 {[%emt 0:00:05]} 55. Kg4 {[%emt 0:03:45]} Ke5 {[%emt 0:10:24]} 56. Bf6+ {[%emt 0:03:13]} Ke4 {[%emt 0:02:09]} 57. Re7+ {[%emt 0:00:13]} Kd5 {[%emt 0:00:04]} 58. Kh5 {[%emt 0:00:42]} Ra8 {[%emt 0:01:42]} 59. Kh6 {[%emt 0:00:33]} Rc8 {[%emt 0:00:58]} 60. Kg7 {[%emt 0:00:56]} Kd6 {[%emt 0:01:32]} 61. h4 {[%emt 0:02:05]} Ra8 {[%emt 0:00:31]} 62. Re3 {[%emt 0:01:31]} Kd7 {[%emt 0:02:00]} 63. Rd3+ {[%emt 0:00:36]} Kc6 {[%emt 0:00:13]} 64. Rd8 {[%emt 0:00:16]} 1-0